Workbook

Sheet Analisis
E3: Total | F3: Línea de Negocio 1 | G3: Línea de Negocio 2 | H3: Línea de Negocio 3 | I3: Línea de Negocio 4 | R3: =F5 -> Gama Blanca | T3: =G5 -> Gama Marrón | V3: =H5 -> Muebles | X3: =I5 -> Electrónica
P4: =D6 -> Volumen de Vtas | R4: =F39 -> 78900 | T4: =G39 -> 45000 | V4: =H39 -> 458000 | X4: =I39 -> 26500
F5: Gama Blanca | G5: Gama Marrón | H5: Muebles | I5: Electrónica
B6: Ingresos | D6: Volumen de Vtas | E6: =SUM(F6:I6) -> 608400 | F6: 78900 | G6: 45000 | H6: 458000 | I6: 26500 | Q6: Originales | R6: =F6 -> 78900 | T6: =G6 -> 45000 | V6: =H6 -> 458000 | X6: =I6 -> 26500
D7: Composición de las Vtas | E7: =SUM(F7:I7) -> 1 | F7: =F6/$E$6 -> 0.1296844181 | G7: =G6/$E$6 -> 0.07396449704 | H7: =H6/$E$6 -> 0.7527942143 | I7: =I6/$E$6 -> 0.04355687048 | P7: =D8 -> Margen Medio sobre Coste | R7: =F41 -> 18 | T7: =G41 -> 35 | V7: =H41 -> 150 | X7: =I41 -> 10
B8: Costes Variables Directos | D8: Margen Medio sobre Coste | E8: =(E6-E9)/E9 -> 0.9786096221 | F8: 0.18 | G8: 0.35 | H8: 1.5 | I8: 0.1
D9: Ventas al Coste Estimadas | E9: =SUM(F9:I9) -> 307488.6492 | F9: =F6/(1+F8) -> 66864.40678 | G9: =G6/(1+G8) -> 33333.33333 | H9: =H6/(1+H8) -> 183200 | I9: =I6/(1+I8) -> 24090.90909 | Q9: Originales | R9: =F8 -> 0.18 | T9: =G8 -> 0.35 | V9: =H8 -> 1.5 | X9: =I8 -> 0.1
B10: = Margen Industrial | D10: Margen | E10: =E6-E9 -> 300911.3508 | F10: =F6-F9 -> 12035.59322 | G10: =G6-G9 -> 11666.66667 | H10: =H6-H9 -> 274800 | I10: =I6-I9 -> 2409.090909 | P10: Composición de las Ventas | R10: =F40 -> 0.1296844181 | T10: =G40 -> 0.07396449704 | V10: =H40 -> 0.7527942143 | X10: =I40 -> 0.04355687048
D11: Margen Bruto Sobre Vtas | E11: =(E6-E9)/E6 -> 0.4945945937 | F11: =(F6-F9)/F6 -> 0.1525423729 | G11: =(G6-G9)/G6 -> 0.2592592593 | H11: =(H6-H9)/H6 -> 0.6 | I11: =(I6-I9)/I6 -> 0.09090909091 | R11: =F7 -> 0.1296844181 | T11: =G7 -> 0.07396449704 | V11: =H7 -> 0.7527942143 | X11: =I7 -> 0.04355687048
D12: Contribución al Margen I. | E12: =SUM(F12:I12) -> 1 | F12: =F10/$E$10 -> 0.03999713932 | G12: =G10/$E$10 -> 0.03877110862 | H12: =H10/$E$10 -> 0.9132257699 | I12: =I10/$E$10 -> 0.00800598217 | R12: =R10-R11 -> 0 | T12: =T10-T11 -> 0 | V12: =V10-V11 -> 0 | X12: =X10-X11 -> 0
B13: Costes Fijos del Periodo Estimados | D13: Costes de Personal | E13: 85465 | F13: Punto Muerto Explotación | I13: =(E13+E14+E15)/E11 -> 242058.8529 | P13: Margen Indusrtial | R13: =F43 -> 12035.59322 | T13: =G43 -> 11666.66667 | V13: =H43 -> 274800 | X13: =I43 -> 2409.090909
D14: Otros Costes de Explotación | E14: 20000 | F14: Margen Seguridad Explotación | I14: =E6-I13 -> 366341.1471 | R14: =F10 -> 12035.59322 | T14: =G10 -> 11666.66667 | V14: =H10 -> 274800 | X14: =I10 -> 2409.090909
D15: Amortizaciones | E15: 14256 | F15: Composición de Ventas para el Pto Muerto de Explotación | R15: =R13-R14 -> 0 | T15: =T13-T14 -> 0 | V15: =V13-V14 -> 0 | X15: =X13-X14 -> 0
B16: Resultado de Explotación Estimado | E16: =E10-E13-E14-E15 -> 181190.3508 | F16: =F5 -> Gama Blanca | G16: =G5 -> Gama Marrón | H16: =H5 -> Muebles | I16: =I5 -> Electrónica | P16: Contribuc. Margen Industrial | R16: =F45 -> 0.03999713932 | T16: =G45 -> 0.03877110862 | V16: =H45 -> 0.9132257699 | X16: =I45 -> 0.00800598217
F17: =$I$13*F7 -> 31391.2615 | G17: =$I$13*G7 -> 17903.76131 | H17: =$I$13*H7 -> 182220.504 | I17: =$I$13*I7 -> 10543.3261 | R17: =F12 -> 0.03999713932 | T17: =G12 -> 0.03877110862 | V17: =H12 -> 0.9132257699 | X17: =I12 -> 0.00800598217
B18: Rtos Financ. y Extraordinarios | D18: Costes Financieros | E18: 15250 | F18: Punto Muerto Total | I18: =(E13+E14+E15+E18+E19+E20)/E11 -> 329975.3012 | R18: =R16-R17 -> 0 | T18: =T16-T17 -> 0 | V18: =V16-V17 -> 0 | X18: =X16-X17 -> 0
D19: Costes Extraordinarios | E19: 2546 | F19: Margen Seguridad Total | I19: =E6-I18 -> 278424.6988 | P19: Volumen de Ventas Total | U19: Margen Medio sobre Coste
D20: Coste de Oportunidad | E20: 25687 | F20: Composición de Ventas para el Pto Muerto de Explotación
B21: Resultado Final Estimado | E21: =E16-E18-E19-E20 -> 137707.3508 | F21: =F5 -> Gama Blanca | G21: =G5 -> Gama Marrón | H21: =H5 -> Muebles | I21: =I5 -> Electrónica
F22: =$I$18*F7 -> 42792.65493 | G22: =$I$18*G7 -> 24406.45719 | H22: =$I$18*H7 -> 248403.4976 | I22: =$I$18*I7 -> 14372.69145
P23: Margen Industrial Rtdo de Explotación Estimado Rtdo Final Estimado Pto. Muerto de Explotac. Pto Muerto Total
E36: Total | F36: Línea de Negocio 1 | G36: Línea de Negocio 2 | H36: Línea de Negocio 3 | I36: Línea de Negocio 4
F38: =F5 -> Gama Blanca | G38: Gama Marrón | H38: Muebles | I38: Electrónica
B39: Ingresos | D39: Volumen de Vtas | E39: =SUM(F39:I39) -> 608400 | F39: =F6 -> 78900 | G39: =G6 -> 45000 | H39: =H6 -> 458000 | I39: =I6 -> 26500
D40: Composición de las Vtas | E40: =SUM(F40:I40) -> 1 | F40: =F39/$E$6 -> 0.1296844181 | G40: =G39/$E$6 -> 0.07396449704 | H40: =H39/$E$6 -> 0.7527942143 | I40: =I39/$E$6 -> 0.04355687048
B41: Costes Variables Directos | D41: Margen Medio sobre Coste | E41: =(E39-E42)/E42 -> 0.9786096221 | F41: =F8*100 -> 18 | G41: =G8*100 -> 35 | H41: =H8*100 -> 150 | I41: =I8*100 -> 10
D42: Ventas al Coste Estimadas | E42: =SUM(F42:I42) -> 307488.6492 | F42: =F39/(1+(F41/100)) -> 66864.40678 | G42: =G39/(1+(G41/100)) -> 33333.33333 | H42: 183200 | I42: 24090.90909
B43: = Margen Industrial | D43: Margen | E43: =E39-E42 -> 300911.3508 | F43: =F39-F42 -> 12035.59322 | G43: =G39-G42 -> 11666.66667 | H43: =H39-H42 -> 274800 | I43: =I39-I42 -> 2409.090909
D44: Margen Bruto Sobre Vtas | E44: =(E39-E42)/E39 -> 0.4945945937 | F44: =(F39-F42)/F39 -> 0.1525423729 | G44: =(G39-G42)/G39 -> 0.2592592593 | H44: =(H39-H42)/H39 -> 0.6 | I44: =(I39-I42)/I39 -> 0.09090909091
D45: Contribución al Margen I. | E45: =SUM(F45:I45) -> 1 | F45: =F43/$E$43 -> 0.03999713932 | G45: =G43/$E$43 -> 0.03877110862 | H45: 0.9132257699 | I45: 0.00800598217
B46: Costes Fijos del Periodo Estimados | D46: Costes de Personal | E46: =E13 -> 85465 | F46: Punto Muerto Explotación | I46: =(E46+E47+E48)/E44 -> 242058.8529
D47: Otros Costes de Explotación | E47: =E14 -> 20000 | F47: Margen Seguridad Explotación | I47: =E39-I46 -> 366341.1471
D48: Amortizaciones | E48: =E15 -> 14256 | F48: Composición de Ventas para el Pto Muerto de Explotación
B49: Resultado de Explotación Estimado | E49: =E43-E46-E47-E48 -> 181190.3508 | F49: =F38 -> Gama Blanca | G49: =G38 -> Gama Marrón | H49: =H38 -> Muebles | I49: =I38 -> Electrónica
F50: =$I$13*F40 -> 31391.2615 | G50: =$I$13*G40 -> 17903.76131 | H50: =$I$13*H40 -> 182220.504 | I50: =$I$13*I40 -> 10543.3261
B51: Rtos Financ. y Extraordinarios | D51: Costes Financieros | E51: =E18 -> 15250 | F51: Punto Muerto Total | I51: =(E46+E47+E48+E51+E52+E53)/E44 -> 329975.3012
D52: Costes Extraordinarios | E52: =E19 -> 2546 | F52: Margen Seguridad Total | I52: =E39-I51 -> 278424.6988
D53: Coste de Oportunidad | E53: =E20 -> 25687 | F53: Composición de Ventas para el Pto Muerto de Explotación
B54: Resultado Final Estimado | E54: =E49-E51-E52-E53 -> 137707.3508 | F54: =F38 -> Gama Blanca | G54: =G38 -> Gama Marrón | H54: =H38 -> Muebles | I54: Electrónica
F55: =$I$18*F40 -> 42792.65493 | G55: =$I$18*G40 -> 24406.45719 | H55: =$I$18*H40 -> 248403.4976 | I55: =$I$18*I40 -> 14372.69145
